Cogmind - Beta 10.2 @@@ ROGUE MODE // 2021.05.12 @ 12:25:03 // Winter2019/RPGLIKE Player: mithc Result: Self-destructed Performance ------------- Evolutions (0) 0 Regions Visited (4) 800 Robots Destroyed (14) 70 Value Destroyed (405) 405 Prototype IDs (0) 0 Alien Tech Used (0) 0 Bonus (25) 25 TOTAL SCORE: 1300 Bonus ------- Follower Combat Kills 25 Cogmind --------- Core Integrity 290/600 Matter 300/300 Energy 160/160 System Corruption 1% Temperature Cool (0) Movement Core (100) Ox1 Location -9/Mines Parts ------- > --- POWER (1) -------- Light Nuclear Core > --- PROPULSION (2) --- (None) > --- UTILITY (1) ------ Terrain Scanner > --- WEAPON (1) ------- Makeshift Axe > --- INVENTORY (2) ---- Datajack Mining Laser Peak State ------------ > --- POWER ------------ Light Nuclear Core > --- PROPULSION ------- Flight Unit Flight Unit > --- UTILITY ---------- Terrain Scanner > --- WEAPON ----------- Makeshift Axe > --- INVENTORY -------- Datajack Mining Laser [Rating: 10] Favorites ----------- Power Light Nuclear Core Engine Light Ion Engine Power Core Light Nuclear Core Propulsion Flight Unit Wheel Wheel Hover Unit Hover Unit Flight Unit Flight Unit Utility Terrain Scanner Device Terrain Scanner Weapon Assault Rifle Ballistic Gun Assault Rifle Special Weapon Mining Laser Slashing Weapon Makeshift Axe Special Melee Weapon Datajack Build | -11 -10 -10 -10 -9 ------- Run | Scr Mat Min Exi Min Slots Evolved 1 | . 1 . . . Power . | . . . . . Propulsion 1 | . 1 . . . Utility . | . . . . . Weapon . | . . . . . Parts Attached 32 | 3 14 15 . . Power 3 | 1 1 1 . . Engine 1 | 1 . . . . Core 2 | . 1 1 . . Reactor . | . . . . . Propulsion 5 | 1 4 . . . Treads . | . . . . . Leg . | . . . . . Wheel 1 | 1 . . . . Hover 1 | . 1 . . . Flight 3 | . 3 . . . Utility 1 | . 1 . . . Device 1 | . 1 . . . Storage . | . . . . . Processor . | . . . . . Hackware . | . . . . . Protection . | . . . . . Artifact . | . . . . . Weapon 23 | 1 8 14 . . Energy Gun . | . . . . . Energy Cannon . | . . . . . Ballistic Gun 6 | 1 4 1 . . Ballistic Cannon . | . . . . . Launcher . | . . . . . Special Weapon 5 | . . 5 . . Impact Weapon . | . . . . . Slashing Weapon 2 | . . 2 . . Piercing Weapon . | . . . . . Special Melee Weapon 10 | . 4 6 . . Unidentified Prototypes . | . . . . . Parts Lost 1 | . . . . 1 Power . | . . . . . Propulsion 1 | . . . . 1 Utility . | . . . . . Weapon . | . . . . . Highest Loss Streak 1 | . . . . 1 Average Slot Usage (%) 86 | . 78 100 100 94 Engine 3 | . 5 . . . Core 18 | . 17 20 20 20 Wheel 5 | . 9 . . . Hover 2 | . 4 . . . Flight 25 | . 16 40 40 34 Device 10 | . 4 20 20 20 Ballistic Gun 8 | . 14 . . . Slashing Weapon 6 | . . 9 20 20 Special Melee Weapon 3 | . 4 5 . . Naked Turns . | . . . . . Heaviest Build 9 | 5 8 9 9 9 Greatest Support 13 | 10 10 13 13 13 Greatest Overweight (x) 2 | . 2 . . 1 Average Overweight (x) . | . . . . . Largest Inventory Capacity 2 | 1 1 2 2 2 Average Capacity 1 | . 1 1 2 2 Most Carried 2 | 1 1 2 2 2 Average Carried 1 | . . 1 2 2 Final Capacity 2 | 1 1 2 2 2 Final Carried 2 | 1 1 2 2 2 Class Distribution -------------------- 97% | Hacker-Mutant Dominant Class ---------------- Hacker-Mutant | -10/Materials Hacker-Mutant | -10/Mines Hacker-Mutant | -10/Exiles Hacker-Mutant | -9/Mines Resources | -11 -10 -10 -10 -9 ----------- Run | Scr Mat Min Exi Min Matter Collected 682 | 230 259 163 . 30 Remotely . | . . . . . Salvage Created 483 | . 225 117 . 141 Parts 29 | . 23 5 . 1 Haulers Intercepted . | . . . . . Recyclers Shooed . | . . . . . Parts Field Recycled . | . . . . . Retrieved Matter . | . . . . . Parts Self-Destructed . | . . . . . Prevented . | . . . . . Kills | -11 -10 -10 -10 -9 ------- Run | Scr Mat Min Exi Min Combat Hostiles Destroyed 22 | . 9 3 . 10 Melee 13 | . . 3 . 10 Guns 9 | . 9 . . . Classes Destroyed 5 | . 3 . . 2 Worker 1 | . . . . 1 Watcher 1 | . 1 . . . Swarmer 3 | . 3 . . . Grunt 9 | . 6 3 . . Assembled 10 | . . . . 10 Best Kill Streak 8 | . 2 2 . 8 Combat Bots Only 7 | . 2 2 . 7 Max Kills in Single Turn 1 | . 1 1 . 1 Gunslinging . | . . . . . Exploded . | . . . . . Melee 1 | . . 1 . 1 Uniques/NPCs Destroyed . | . . . . . Combat | -11 -10 -10 -10 -9 -------- Run | Scr Mat Min Exi Min Damage Taken 1058 | . 580 140 . 338 Core 909 | . 476 118 . 315 Absorbed by Shields . | . . . . . Redirected to Core 497 | . 340 75 . 82 Core Remaining (%) 100 | 100 . . . . Volleys Fired 54 | . 54 . . . Largest 1 | . 1 . . . Hottest 20 | . 20 . . . Shots Fired 54 | . 54 . . . Gun 54 | . 54 . . . Cannon . | . . . . . Launcher . | . . . . . Special . | . . . . . Kinetic 54 | . 54 . . . Thermal . | . . . . . Explosive . | . . . . . Electromagnetic . | . . . . . Robot Hit Streak 11 | . 11 . . . Robot Miss Streak 3 | . 3 . . . Penetration Max . | . . . . . Secondary Targets . | . . . . . Shots Hit Robots 66 | . 44 6 . 16 Core Hits 32 | . 18 3 . 11 Critical Hits . | . . . . . Critical Kills . | . . . . . Critical Parts Destroyed . | . . . . . Melee Attacks 46 | . 7 11 . 28 Impact . | . . . . . Slashing 39 | . . 11 . 28 Piercing . | . . . . . Sneak Attacks 4 | . 3 . . 1 Combat Hostiles . | . . . . . Follow-up Attacks . | . . . . . Damage Inflicted 1496 | . 528 232 . 736 Guns 528 | . 528 . . . Cannons . | . . . . . Explosions . | . . . . . Melee 968 | . . 232 . 736 Ramming . | . . . . . Kinetic 528 | . 528 . . . Thermal . | . . . . . Explosive . | . . . . . Electromagnetic . | . . . . . Impact . | . . . . . Slashing 968 | . . 232 . 736 Piercing . | . . . . . Highest Corruption 1 | . 1 1 1 1 Average Corruption 1 | . 1 1 1 1 Corruption Purged . | . . . . . Effects 7 | . 4 . . 3 Message Errors 2 | . . . . 2 Energy Discharges 1 | . 1 . . . Data Loss (minor) 1 | . . . . 1 Targeting Errors 3 | . 3 . . . Overload Shots . | . . . . . Overflow Damage 67 | . . 43 . 24 Projectiles . | . . . . . Explosions . | . . . . . Melee 67 | . . 43 . 24 Knockbacks . | . . . . . Impact . | . . . . . Kinetic . | . . . . . Secondary . | . . . . . Self-Inflicted Damage . | . . . . . Shots . | . . . . . Rammed . | . . . . . Targets Rammed . | . . . . . Kicked . | . . . . . Crushed . | . . . . . Highest Temperature 4 | . 3 3 . 4 Average Temperature 3 | . 3 3 . 4 Received Heat Transfer 344 | . 243 81 . 20 Siege Activations . | . . . . . Robots Corrupted . | . . . . . Combat Hostiles . | . . . . . Parts Fried . | . . . . . Impact Corruptions . | . . . . . Robots Melted . | . . . . . Combat Hostiles . | . . . . . Parts Melted . | . . . . . Heat Transferred . | . . . . . Parts Sabotaged . | . . . . . Parts Stolen . | . . . . . Parts Stripped . | . . . . . Power Chain Reactions . | . . . . . Missiles Intercepted . | . . . . . Alert | -11 -10 -10 -10 -9 ------- Run | Scr Mat Min Exi Min Peak Influence 221 | . 221 204 . 30 Initial 85 | . . 85 . . Average 94 | . 105 133 . 12 Maximum Alert Level 1 | . 1 1 . . Low Security (%) 90 | 100 91 76 . 100 Level 1 9 | . 8 23 . . Level 2 . | . . . . . Level 3 . | . . . . . Level 4 . | . . . . . Level 5 . | . . . . . High Security . | . . . . . Max Security . | . . . . . Squads Dispatched 3 | . 3 . . . Investigation . | . . . . . Extermination . | . . . . . Reinforcement 3 | . 3 . . . Assault . | . . . . . Garrison . | . . . . . Intercept . | . . . . . Construction Impeded . | . . . . . Haulers Reinforced . | . . . . . Stealth | -11 -10 -10 -10 -9 --------- Run | Scr Mat Min Exi Min Distress Signals 1 | . 1 . . . Communications Jammed . | . . . . . Distress Signals . | . . . . . Times Spotted 45 | . 28 4 . 13 Peak Tracking Total 6 | . 3 2 . 6 Tactical Retreats 5 | . 4 1 . . Traps | -11 -10 -10 -10 -9 ------- Run | Scr Mat Min Exi Min Traps Triggered 3 | . 3 . . . Indirectly . | . . . . . Trap Hack Attempts 21 | . 21 . . . Triggered . | . . . . . Disarmed . | . . . . . Reprogrammed 5 | . 5 . . . Reused 1 | . 1 . . . Traps Extracted . | . . . . . Installed . | . . . . . Triggered 2 | . 2 . . . Machines | -11 -10 -10 -10 -9 ---------- Run | Scr Mat Min Exi Min Machines Disabled . | . . . . . Max in Single Turn . | . . . . . Machines Sabotaged . | . . . . . Garrisons Compromised . | . . . . . Overloaded Fab Kills . | . . . . . Fab Network Shutdowns . | . . . . . Hacking | -11 -10 -10 -10 -9 --------- Run | Scr Mat Min Exi Min Machines Accessed 5 | . 5 . . . Terminals 5 | . 5 . . . Fabricators . | . . . . . Repair Stations . | . . . . . Recycling Units . | . . . . . Scanalyzers . | . . . . . Garrison Access . | . . . . . Total Hacks 13 | . 13 . . . Successful 11 | . 11 . . . Failed 2 | . 2 . . . Catastrophic . | . . . . . Database Lockouts . | . . . . . Manual 10 | . 10 . . . Terminals 13 | . 13 . . . Fabricators . | . . . . . Repair Stations . | . . . . . Recycling Units . | . . . . . Scanalyzers . | . . . . . Garrison Access . | . . . . . Terminal Hacks 2 | . 2 . . . Robot Analysis 1 | . 1 . . . Branch Access Points 1 | . 1 . . . Fabricator Hacks . | . . . . . Repair Station Hacks . | . . . . . Recycling Unit Hacks . | . . . . . Scanalyzer . | . . . . . Garrison Access Hacks . | . . . . . Unauthorized Hacks 9 | . 9 . . . Terminals 9 | . 9 . . . Track 2 | . 2 . . . Assimilate 3 | . 3 . . . Botnet 3 | . 3 . . . Operators 1 | . 1 . . . Fabricators . | . . . . . Repair Stations . | . . . . . Recycling Units . | . . . . . Scanalyzers . | . . . . . Garrison Access . | . . . . . Data Cores Recovered . | . . . . . Used . | . . . . . Hacking Detections 5 | . 5 . . . Full Trace Events . | . . . . . Feedback Events . | . . . . . Feedback Blocked . | . . . . . Robot Schematics Acquired . | . . . . . Robots Built . | . . . . . Matter . | . . . . . Time . | . . . . . Total Robot Build Rating . | . . . . . Part Schematics Acquired . | . . . . . Parts Built . | . . . . . Matter . | . . . . . Time . | . . . . . Total Part Build Rating . | . . . . . Parts Repaired . | . . . . . Time . | . . . . . Parts Recycled . | . . . . . Recycled Matter . | . . . . . Retrieved Matter . | . . . . . Retrieved Components . | . . . . . Parts Scanalyzed . | . . . . . Part Schematics Acquired . | . . . . . Parts Damaged . | . . . . . Bothacking | -11 -10 -10 -10 -9 ------------ Run | Scr Mat Min Exi Min Used RIF Installer . | . . . . . Robots Hacked 3 | . 3 . . . Non-combat 2 | . 2 . . . Combat 1 | . 1 . . . Robot Hacks Applied 3 | . 3 . . . parse_system 1 | . 1 . . . no_distress 1 | . 1 . . . check_alert 1 | . 1 . . . Relay Couplers Released . | . . . . . Robots Rewired . | . . . . . Allies Hacked . | . . . . . Hacks Repelled . | . . . . . Allies | -11 -10 -10 -10 -9 -------- Run | Scr Mat Min Exi Min Total Allies 3 | . 1 1 . 1 Largest Group 2 | . 1 2 1 1 Highest-Rated Group 41 | . 10 41 10 10 Highest-Rated Ally 31 | . 10 31 10 10 Total Orders 1 | . 1 . . . STAY 1 | . 1 . . . Ally Attacks 10 | . . 10 . . Total Damage 107 | . . 107 . . Kills 1 | . . 1 . . Allies Corrupted . | . . . . . Allies Melted . | . . . . . Intel | -11 -10 -10 -10 -9 ------- Run | Scr Mat Min Exi Min Robot Analysis Total 1 | . 1 . . . Derelict Logs Recovered 3 | . . 3 . . Drone Launches . | . . . . . Drone Recoveries . | . . . . . Exploration | -11 -10 -10 -10 -9 ------------- Run | Scr Mat Min Exi Min Turns Passed 1986 | 42 1165 349 170 260 Spaces Moved 2867 | 47 1279 673 404 464 Core 14 | 2 2 . . 10 Treads . | . . . . . Legs . | . . . . . Wheels 434 | 45 389 . . . Hover 204 | . 204 . . . Flight 2215 | . 684 673 404 454 Fastest Speed 37 | 50 37 37 37 37 Average Speed 45 | 78 54 37 37 38 Slowest Speed 150 | 80 150 37 37 100 Overloaded Moves . | . . . . . Propulsion Burnouts . | . . . . . Robots Hopped 13 | . 7 6 . . Cave-ins Triggered . | . . . . . Exploration Rate (%) 63 | 3 97 91 68 58 Regions Visited 4 Branch Regions 3 Pre-discovered Areas 1 | . . 1 . . Known Exits Taken 1 | . 1 . . . Unknown Exits Taken 3 | 1 . 1 1 . Scrap Searched 3 | . . 2 . 1 Spaces Dug . | . . . . . Terrain Destroyed . | . . . . . Melee . | . . . . . Projectile . | . . . . . AOE . | . . . . . Terrain Rammed . | . . . . . Walls Destroyed . | . . . . . Machines Disabled . | . . . . . Actions | -11 -10 -10 -10 -9 --------- Run | Scr Mat Min Exi Min Total 3419 | 50 1681 748 423 517 Wait 371 | . 287 44 20 20 Move 2840 | 46 1265 662 403 464 Hop 10 | . 6 4 . . Pick Up 3 | 1 1 1 . . Fast Attach 12 | 3 7 2 . . Attach 2 | . 2 . . . Detach 3 | . 3 . . . Swap 18 | . 5 13 . . Drop 8 | . 6 2 . . Fire 54 | . 54 . . . Melee 46 | . 7 11 . 28 Ram . | . . . . . Kick . | . . . . . Crush . | . . . . . Escape Stasis . | . . . . . Rewire . | . . . . . Trap 21 | . 21 . . . Miscellaneous 31 | . 17 9 . 5 Route ------- -11/Scrapyard -10/Materials (discovered 4 exits: [*Mat x3] / *Min) -10/Mines (discovered 3 exits: [*Mat x2] / *Exi) -10/Exiles -9/Mines (discovered 2 exits: [*Mat x2]) History --------- Turn | Location | Event 8 | -11/Scrapyard | Discovered new exit (range 15) 43 | -11/Scrapyard | Entered Materials 351 | -10/Materials | Build established: Hacker-Mutant 394 | -10/Materials | Discovered new exit (range 13) 671 | -10/Materials | Discovered new exit (range 16) 722 | -10/Materials | Upgraded with Propulsion slot (x1) 746 | -10/Materials | Discovered new exit (range 14) 875 | -10/Materials | Reached level 2 928 | -10/Materials | Identified exit to Mines 1169 | -10/Materials | Discovered new exit (range 13) 1208 | -10/Materials | Entered Mines 1208 | -10/Mines | Accompanied by 1 ally 1220 | -10/Mines | Received a Mining Laser from a helpful Derelict 1264 | -10/Mines | Learned Materials security intel 1265 | -10/Mines | Discovered new exit (range 11) 1279 | -10/Mines | Discovered new exit (range 9) 1305 | -10/Mines | A weapon hastily lodged in a ceiling crevice suddenly fell to the ground 1389 | -10/Mines | Learned 2 Materials zone layouts 1400 | -10/Mines | Learned location of Zion (-6) 1436 | -10/Mines | Core integrity fell below 50% 1487 | -10/Mines | Deemed a non-threat by the Exiles lab entrance 1487 | -10/Mines | Discovered new exit (range 5) 1557 | -10/Mines | Entered Exiles 1557 | -10/Exiles | Accompanied by 1 ally 1566 | -10/Exiles | Met 8R-AWN 1573 | -10/Exiles | Met EX-HEX 1587 | -10/Exiles | Met EX-DEC 1607 | -10/Exiles | Met EX-BIN 1703 | -10/Exiles | Discovered new exit (range 10) 1727 | -10/Exiles | Entered Mines 1727 | -9/Mines | Accompanied by 1 ally 1729 | -9/Mines | Reached level 3 1734 | -9/Mines | Discovered new exit (range 10) 1785 | -9/Mines | Met a Derelict bent on vengeance 1817 | -9/Mines | Met a Derelict testing a Signal Generator 1817 | -9/Mines | Discovered new exit (range 15) 1836 | -9/Mines | Assembled infested the area 1841 | -9/Mines | Assisted by a Guerilla fighting off Assembled 1962 | -9/Mines | Destroyed 7 combat bots 1987 | -9/Mines | Self-destructed Last Messages --------------- 01917_ K-01 Serf destroyed. 01922_ K-01 Serf collects debris. 01925_ as-04142 destroyed. 01926_ K-01 Serf collects debris. 01927_ as-22868 destroyed. 01933_ as-49258 destroyed. 01936_ Flight Unit destroyed. 01937_ HT#DXHADBG=3ZR0S=WH8Y|EXZCS LVWXD PBVW 01937_ as-06896 destroyed. 01941_ as-23095 destroyed. 01943_ Used Protomatter to restore core integrity (+24, depleted) 01950_ Used Protomatter to restore core integrity (+48, depleted) 01956_ Destroyed Asb. Hover Unit. 01961_ System corrupted: Component data lost. 01968_ as-45588 destroyed. 01969_ Flight Unit severed. 01970_ as-29880 destroyed. 01974_ Used Protomatter to restore core integrity (+33, depleted) 01980_ Destroyed Asb. Hover Unit. 01982_ as-97421 destroyed. Map ----- +----------------------------------------------------+ | ????????????????????????????????# ## ## | | ???????????????????????????#???## #####? | | ??????????????????????????????## ##???? | | ?????????????????????????????## #???? | | ?????????????????????????#???## #???? | | ?????????????????????######### ##???? | | ?????????????????????# ###??#?? | | ?????????????????????# ###?????? | | ?????????????????????# ##### ##?????#? | | ??????????? ????????# #???## #####??? | | ??????????? ???????# #????###### ##?? | | ??????????# ???????# #?????????## #?? | | ?????????? ???????# #?????????## #?? | | ?????????? ???????# #???????#??## ##?? | | ?????????? ???#???# #???????????# ##??# | | ?????????? ???????# #???????????# ##?#?? | | ??????????# #???????# ########???### ##????? | | ??????????# #???????# #?????## #???### | | ??????????# #???????#####"# #?????## #?### | | ??????????# #?????#??????#" ##???## ### | | ???????#### #??#?????????## ###?# ## | | ???????? #???#?????????# ##?# | | ?########## ###########???# ##?# # | | ?# # %%%a%#?#?# ### # | | ?# """ # #########=#??## ## # | | ?# """ # #???????#@#?## < ## # | | ?# """ #???????#r###%% % %= # | | ?# ####???##?## % %% !==* ### #### | | ?# #????????#?######% ## =%#####?####??? | | ?# #???????????#???#########?#?????????? | | ?# #???????????#????????????#??????????? | | ?##########???????????????????????????????????? | | ??????????????#???#???#????##?????#???????????? | | | | | | | | | | | | | | | | | | | | | | | | | | | | | | | | | | | +----------------------------------------------------+ Best States ------------- Heat Dissipation 25 Energy Generation 14 Energy Capacity 160 Matter Stores 300 Matter Capacity 300 Sight Range 16 Terrain Scan Range 14 Terrain Scan Density 10 Evasion (%) 62 Offensive Hacking 20 Item Schematics ----------------- None Robot Schematics ------------------ None Fabricated ------------ Nothing Alien Tech Used ----------------- None Achievements -------------- Quantum Hacking True Hacker Challenges ------------ None RPGLIKE | -11 -10 -10 -10 -9 --------- Run | Scr Mat Min Exi Min Levels Raised 2 | . 1 . . 1 XP Earned 6442 | 3000 1635 1107 200 500 XP Spent 3350 | 250 2500 600 . . Upgrades 8 | 1 5 2 . . Propulsion Slot 1 | . 1 . . . Mass Support 1 | . . 1 . . Inventory Capacity 2 | 1 . 1 . . Hack Attack % 4 | . 4 . . . Protomatter Created 232 | . 146 40 . 46 Integrity Restored 623 | . 314 204 . 105 Core 599 | . 290 204 . 105 Parts 24 | . 24 . . . Protomatter Decayed 40 | . 40 . . . Game ------ Seed ReflectiveLargeCannon Manual? 0 Play Time 00:46:36 Cumulative 14.4 hours Start 2021.05.12 @ 10:36:36 End 2021.05.12 @ 12:25:03 Sessions 1 Manual Loads 0 Difficulty Rogue Special Mode Winter2019/RPGLIKE Game No. 8 Rogue 8 Adventurer 0 Explorer 0 Win Type - Total 0 Types 0/0/0/0/0/0/0/0/0 Lore% 19 Gallery% 13 Achievement% 24 Wizard Run 0 Options --------- ASCII 0 Keyboard 0 Movement Numpad Keybinds 0 Fullscreen 1 Font 24/Terminus Map View 76x50 Tactical HUD 1 Map Filters NONE Filters NONE Steam 1 RUN: 128d28f9-77b8-4310-a2c9-dbcf368c551c